fUSD/lending_fUSD_20250806
["ID","MTS","AMOUNT","RATE_DAILY","PERIOD"]
[377563269,1754442699463,-400.0,0.00036438,14]
[377563270,1754442699472,-1572.81,0.00036438,14]
[377563271,1754442699482,-400.0,0.00036438,14]
[377563272,1754442699491,-400.0,0.00036438,14]
[377563273,1754442699501,-400.0,0.00036438,14]
[377563274,1754442699511,-976.67,0.00036438,14]
[377563275,1754442699521,-181.335205,0.00036438,7]
[377563276,1754442699531,-1857.15,0.00036438,14]
[377563277,1754442699541,-1346.41,0.00036438,14]
[377563278,1754442699551,-744.01,0.00036438,14]
[377563279,1754442699562,-1925.81,0.00036438,14]
[377563280,1754442699572,-2216.89,0.00036438,14]
[377563281,1754442699582,-659.92,0.00036438,14]
[377563282,1754442699591,-400.0,0.00036438,14]
[377563283,1754442699600,-959.38,0.00036438,14]
[377563284,1754442699610,-400.0,0.00036438,14]
[377563285,1754442699619,-400.0,0.00036438,14]
[377563286,1754442699628,-400.0,0.00036438,14]
[377563287,1754442699640,-2901.33,0.00036438,14]
[377563288,1754442699650,-1076.24,0.00036438,14]
[377563289,1754442699660,-1714.16,0.00036438,14]
[377563290,1754442699669,-1429.75,0.00036438,14]
[377563291,1754442699680,-2076.05,0.00036438,14]
[377563292,1754442699690,-1106.3,0.00036438,14]
[377563293,1754442699699,-403.07,0.00036438,14]
[377563294,1754442699708,-1733.29,0.00036438,14]
[377563295,1754442699718,-71180.7,0.00036438,14]
[377563296,1754442699727,-803.68,0.00036438,14]
[377563297,1754442699737,-530.62,0.00036438,14]
[377563298,1754442699746,-2097.99,0.00036438,14]
[377563299,1754442699756,-1403.33,0.00036438,14]
[377563300,1754442699765,-400.0,0.00036438,14]
[377563301,1754442699775,-865.88,0.00036438,14]
[377563302,1754442699785,-1054.54,0.00036438,14]
[377563303,1754442699795,-949.49,0.00036438,14]
[377563304,1754442699804,-708.86,0.00036438,14]
[377563305,1754442699813,-2531.64,0.00036438,14]
[377563306,1754442699822,-1028.9,0.00036438,14]
[377563307,1754442699831,-400.0,0.00036438,14]
[377563308,1754442699841,-462.06,0.00036438,14]
[377563309,1754442699851,-400.0,0.00036438,14]
[377563310,1754442699861,-746.56,0.00036438,14]
[377563311,1754442699881,-931.48,0.00036438,14]
[377563312,1754442699902,-2720.87,0.00036438,14]
[377563313,1754442699917,-1876.24,0.00036438,14]
[377563314,1754442699927,-400.0,0.00036438,14]
[377563315,1754442699936,-870.66,0.00036438,14]
[377563316,1754442699946,-400.0,0.00036438,14]
[377563317,1754442699955,-1175.54,0.00036438,14]
[377563318,1754442699964,-400.0,0.00036438,14]
[377563319,1754442699974,-3000.64,0.00036438,14]
[377563320,1754442699984,-633.94,0.00036438,14]
[377563321,1754442699993,-400.0,0.00036438,14]
[377563322,1754442700003,-1225.57,0.00036438,14]
[377563323,1754442700012,-1902.8,0.00036438,14]
[377563324,1754442700021,-2045.59,0.00036438,14]
[377563325,1754442700031,-434.21,0.00036438,14]
[377563326,1754442700041,-183.74722792,0.00036438,14]
[377563327,1754442700050,-998.47,0.00036438,14]
[377563328,1754442700060,-400.0,0.00036438,14]
[377563329,1754442700069,-400.0,0.00036438,14]
[377563330,1754442700079,-1355.58,0.00036438,14]
[377563331,1754442700088,-400.0,0.00036438,14]
[377563332,1754442700098,-400.0,0.00036438,14]
[377563333,1754442700107,-1795.96,0.00036438,14]
[377563334,1754442700117,-1564.58,0.00036438,14]
[377563335,1754442700126,-400.0,0.00036438,14]
[377563336,1754442700135,-2344.91,0.00036438,14]
[377563337,1754442700145,-1873.15,0.00036438,14]
[377563338,1754442700153,-400.0,0.00036438,14]
[377563339,1754442700163,-1545.05,0.00036438,14]
[377563340,1754442700172,-485.72,0.00036438,14]
[377563341,1754442700182,-1667.5,0.00036438,14]
[377563342,1754442700192,-1836.42,0.00036438,14]
[377563343,1754442700201,-400.0,0.00036438,14]
[377563344,1754442700210,-1706.89,0.00036438,14]
[377563345,1754442700220,-1036.37,0.00036438,14]
[377563346,1754442700234,-500.3,0.00036438,14]
[377563347,1754442700243,-400.0,0.00036438,14]
[377563348,1754442700252,-1544.77,0.00036438,14]
[377563349,1754442700262,-1224.22,0.00036438,14]
[377563350,1754442700273,-2426.19,0.00036438,14]
[377563351,1754442700282,-1248.82,0.00036438,14]
[377563352,1754442700292,-637.4,0.00036438,14]
[377563353,1754442700302,-2397.5,0.00036438,14]
[377563354,1754442700311,-1417.98,0.00036438,14]
[377563355,1754442700321,-400.0,0.00036438,14]
[377563356,1754442700331,-798.91,0.00036438,14]
[377563357,1754442700341,-1674.96,0.00036438,14]
[377563358,1754442700350,-571.75,0.00036438,14]
[377563359,1754442700360,-400.0,0.00036438,14]
[377563360,1754442700369,-1071.09,0.00036438,14]
[377563361,1754442700379,-674.78,0.00036438,14]
[377563362,1754442700388,-400.0,0.00036438,14]
[377563363,1754442700398,-1579.0,0.00036438,14]
[377563364,1754442700407,-400.0,0.00036438,14]
[377563365,1754442700416,-845.65,0.00036438,14]
[377563366,1754442700426,-1796.24,0.00036438,14]
[377563367,1754442700435,-1157.39,0.00036438,14]
[377563368,1754442700445,-435.63,0.00036438,14]
[377563369,1754442700454,-1825.42,0.00036438,14]
[377563370,1754442700463,-414.19,0.00036438,14]
[377563371,1754442700473,-1825.42,0.00036438,14]
[377563372,1754442700482,-400.0,0.00036438,14]
[377563373,1754442700491,-400.0,0.00036438,14]
[377563374,1754442700501,-688.85,0.00036438,14]
[377563375,1754442700510,-1026.68,0.00036438,14]
[377563376,1754442700520,-933.37,0.00036438,14]
[377563377,1754442700529,-400.0,0.00036438,14]
[377563378,1754442700539,-512.39,0.00036438,14]
[377563379,1754442700548,-443.14,0.00036438,14]
[377563380,1754442700558,-1596.07,0.00036438,14]
[377563381,1754442700567,-400.0,0.00036438,14]
[377563382,1754442700577,-1081.6,0.00036438,14]
[377563383,1754442700587,-1677.89,0.00036438,14]
[377563384,1754442700596,-953.14,0.00036438,14]
[377563385,1754442700606,-2189.81,0.00036438,14]
[377563386,1754442700615,-400.0,0.00036438,14]
[377563387,1754442700624,-789.16,0.00036438,14]
[377563388,1754442700637,-1839.11,0.00036438,14]
[377563389,1754442700646,-899.95,0.00036438,14]
[377563390,1754442700655,-151.0,0.00036438,7]
[377563391,1754442700664,-400.0,0.00036438,14]
[377563392,1754442700673,-151.0,0.00036438,7]
[377563393,1754442700682,-998.17,0.00036438,14]
[377563394,1754442700692,-944.7,0.00036438,14]
[377563395,1754442700701,-964.26,0.00036438,14]
[377563396,1754442700710,-11077.98,0.00036438,14]
[377563397,1754442700720,-1086.06,0.00036438,14]
[377563398,1754442700730,-2662.37,0.00036438,14]
[377563399,1754442700739,-1724.68,0.00036438,14]
[377563400,1754442700749,-1927.37,0.00036438,14]
[377563401,1754442700759,-1852.32,0.00036438,14]
[377563402,1754442700768,-3043.44,0.00036438,14]
[377563403,1754442700777,-1367.44,0.00036438,14]
[377563404,1754442700787,-481.77,0.00036438,14]
[377563405,1754442700796,-400.0,0.00036438,14]
[377563406,1754442700805,-151.0,0.00036438,7]
[377563407,1754442700814,-2168.63,0.00036438,14]
[377563408,1754442700824,-400.0,0.00036438,14]
[377563409,1754442700833,-1497.51,0.00036438,14]
[377563410,1754442700843,-519.57,0.00036438,14]
[377563411,1754442700852,-2308.05,0.00036438,14]
[377563412,1754442700861,-2166.93,0.00036438,14]
[377563413,1754442700871,-555.63,0.00036438,14]
[377563414,1754442700880,-694.12,0.00036438,14]
[377563415,1754442700890,-400.0,0.00036438,14]
[377563416,1754442700899,-831.42,0.00036438,14]
[377563417,1754442700910,-630.58,0.00036438,14]
[377563418,1754442700919,-400.0,0.00036438,14]
[377563419,1754442700929,-1347.12,0.00036438,14]
[377563420,1754442700941,-400.0,0.00036438,14]
[377563421,1754442700952,-1527.34,0.00036438,14]
[377563422,1754442700961,-992.97,0.00036438,14]
[377563423,1754442700971,-400.0,0.00036438,14]
[377563424,1754442700981,-400.0,0.00036438,14]
[377563425,1754442700991,-282.79998518,0.00036438,14]
[377563426,1754442701001,-797.7,0.00036438,14]
[377563427,1754442701010,-774.04,0.00036438,14]
[377563428,1754442701019,-1482.49,0.00036438,14]
[377563429,1754442701029,-400.0,0.00036438,14]
[377563430,1754442701038,-972.26,0.00036438,14]
[377563431,1754442701047,-856.6,0.00036438,14]
[377563432,1754442701057,-829.38,0.00036438,14]
[377563433,1754442701066,-2155.65,0.00036438,14]
[377563434,1754442701184,-2895.81,0.00036438,14]
[377563435,1754442701194,-400.0,0.00036438,14]
[377563436,1754442701203,-400.0,0.00036438,14]
[377563437,1754442701212,-400.0,0.00036438,14]
[377563438,1754442701221,-1220.16,0.00036438,14]
[377563439,1754442701235,-1817.13,0.00036438,14]
[377563440,1754442701244,-1686.84,0.00036438,14]
[377563441,1754442701253,-400.0,0.00036438,14]
[377563442,1754442701262,-918.29,0.00036438,14]
[377563443,1754442701271,-400.0,0.00036438,14]
[377563444,1754442701280,-400.0,0.00036438,14]
[377563445,1754442701289,-2906.26,0.00036438,14]
[377563446,1754442701299,-1831.61,0.00036438,14]
[377563447,1754442701308,-400.0,0.00036438,14]
[377563448,1754442701317,-2072.8,0.00036438,14]
[377563449,1754442701326,-400.0,0.00036438,14]
[377563450,1754442701335,-400.0,0.00036438,14]
[377563451,1754442701345,-1684.07,0.00036438,14]
[377563452,1754442701364,-400.0,0.00036438,14]
[377563453,1754442701373,-400.0,0.00036438,2]
[377563454,1754442701383,-437.87,0.00036438,14]
[377563455,1754442701392,-400.0,0.00036438,14]
[377563456,1754442701402,-1285.21,0.00036438,14]
[377563457,1754442701411,-484.61,0.00036438,14]
[377563458,1754442701420,-1327.42,0.00036438,14]
[377563459,1754442701429,-877.04,0.00036438,14]
[377563460,1754442701439,-2588.34,0.00036438,14]
[377563461,1754442701449,-911.75,0.00036438,14]
[377563462,1754442701459,-2933.48,0.00036438,14]
[377563463,1754442701468,-890.81,0.00036438,14]
[377563464,1754442701478,-882.17,0.00036438,14]
[377563465,1754442701487,-400.0,0.00036438,14]
[377563466,1754442701496,-2152.31,0.00036438,14]
[377563467,1754442701505,-1922.57,0.00036438,14]
[377563468,1754442701514,-1093.71,0.00036438,14]
[377563469,1754442701524,-400.0,0.00036438,14]
[377563470,1754442701533,-400.0,0.00036438,14]
[377563471,1754442701543,-2239.45,0.00036438,14]
[377563472,1754442701552,-662.2,0.00036438,2]
[377563473,1754442701561,-1577.92,0.00036438,14]
[377563474,1754442701570,-734.75,0.00036438,14]
[377563475,1754442701579,-1074.63,0.00036438,14]
[377563476,1754442701588,-400.0,0.00036438,14]
[377563477,1754442701597,-4402.83,0.00036438,14]
[377563478,1754442701606,-400.0,0.00036438,14]
[377563479,1754442701615,-400.0,0.00036438,14]
[377563480,1754442701624,-1169.16,0.00036438,14]
[377563481,1754442701633,-1516.96,0.00036438,14]
[377563482,1754442701642,-500.0,0.00036473,5]
[377563483,1754442701651,-500.0,0.00036473,5]
[377563484,1754442701660,-500.0,0.00036473,5]
[377563485,1754442701669,-99034.9051171,0.00036475,2]
[377563486,1754442701677,-2779.4257156,0.00036475,2]
[377563487,1754442701687,-151.0,0.00036475,7]
[377563488,1754442701696,-15238.52,0.000365,14]
[377563489,1754442701705,-452.32,0.00036543,120]
[377563490,1754442701714,-151.0,0.000366,7]
[377563491,1754442701723,-159.59182499,0.00036612,2]
[377563492,1754442701733,-160.4140988,0.00036612,15]
[377563493,1754442701742,-1700.13144921,0.00036612,2]
[377563494,1754442701751,-305.99,0.000367,12]
[377563495,1754442701760,-728.77,0.00036705,4]
[377563496,1754442701768,-400.0,0.00036711,14]
[377563497,1754442701778,-400.0,0.00036711,14]
[377563498,1754442701787,-400.0,0.00036711,14]
[377563499,1754442701795,-400.0,0.00036711,14]
[377563500,1754442701804,-400.0,0.00036711,14]
[377563501,1754442701813,-400.0,0.00036711,14]
[377563502,1754442701822,-400.0,0.00036711,14]
[377563503,1754442701832,-400.0,0.00036711,14]
[377563504,1754442701841,-400.0,0.00036711,14]
[377563505,1754442701850,-400.0,0.00036711,14]
[377563506,1754442701859,-400.0,0.00036711,14]
[377563507,1754442701868,-400.0,0.00036711,14]
[377563508,1754442701877,-400.0,0.00036711,14]
[377563509,1754442701886,-400.0,0.00036711,14]
[377563510,1754442701895,-400.0,0.00036711,14]
[377563511,1754442701905,-151.0,0.00036712,7]
[377563512,1754442701914,-653.55,0.00036712,14]
[377563513,1754442701924,-400.0,0.00036712,14]
[377563514,1754442701933,-400.0,0.00036712,14]
[377563515,1754442701942,-1599.79,0.00036712,14]
[377563516,1754442701951,-400.0,0.00036712,14]
[377563517,1754442701960,-475.17437434,0.00036712,14]
[377563518,1754442701970,-400.0,0.00036712,14]
[377563519,1754442701979,-400.0,0.00036712,14]
[377563520,1754442701987,-400.0,0.00036712,14]
[377563521,1754442701996,-400.0,0.00036712,14]
[377563522,1754442702006,-400.0,0.00036712,14]
[377563523,1754442702015,-400.0,0.00036712,14]
[377563524,1754442702024,-714.57,0.00036712,14]
[377563525,1754442702033,-668.76,0.00036712,14]
[377563526,1754442702042,-641.26,0.00036712,14]
[377563527,1754442702051,-494.87,0.00036712,14]
[377563528,1754442702060,-619.09,0.00036712,14]
[377563529,1754442702069,-702.43,0.00036712,14]
[377563530,1754442702078,-636.76,0.00036712,14]
[377563531,1754442702087,-1360.36,0.00036712,14]
[377563532,1754442702097,-151.0,0.00036712,7]
[377563533,1754442702106,-1144.8,0.00036712,14]
[377563534,1754442702115,-571.71,0.00036712,14]
[377563535,1754442702124,-1627.65,0.00036712,14]
[377563536,1754442702133,-885.23,0.00036712,14]
[377563537,1754442702143,-591.54,0.00036712,14]
[377563538,1754442702152,-1168.08,0.00036712,14]
[377563539,1754442702161,-436.17978083,0.00036712,14]
[377563540,1754442702170,-468.66,0.00036712,14]
[377563541,1754442702179,-400.0,0.00036712,14]
[377563542,1754442702189,-1669.14,0.00036712,14]
[377563543,1754442702199,-1562.12,0.00036712,14]
[377563544,1754442702208,-400.0,0.00036712,14]
[377563545,1754442702217,-720.08,0.00036712,14]
[377563546,1754442702229,-377.83442377,0.00036712,14]
[377563547,1754442702238,-400.0,0.00036712,14]
[377563548,1754442702247,-400.0,0.00036712,14]
[377563549,1754442702256,-400.0,0.00036712,14]
[377563550,1754442702265,-400.0,0.00036712,14]
[377563551,1754442702275,-400.0,0.00036712,14]
[377563552,1754442702284,-1089.7,0.00036712,14]
[377563553,1754442702293,-490.35,0.00036712,14]
[377563554,1754442702302,-400.0,0.00036712,14]
[377563555,1754442702311,-548.76,0.00036712,14]
[377563556,1754442702320,-749.78,0.00036712,14]
[377563557,1754442702329,-400.0,0.00036712,14]
[377563558,1754442702339,-425.6,0.00036712,14]
[377563559,1754442702348,-400.0,0.00036712,14]
[377563560,1754442702358,-469.53,0.00036712,14]
[377563561,1754442702367,-454.1,0.00036712,14]
[377563562,1754442702376,-462.88,0.00036712,14]
[377563563,1754442702386,-806.86,0.00036712,14]
[377563564,1754442702396,-395.35232354,0.00036712,14]
[377563565,1754442702405,-400.0,0.00036712,14]
[377563566,1754442702415,-836.15,0.00036712,14]
[377563567,1754442702424,-400.0,0.00036712,14]
[377563568,1754442702433,-400.0,0.00036712,14]
[377563569,1754442702443,-400.0,0.00036712,14]
[377563570,1754442702453,-413.48,0.00036712,14]
[377563571,1754442702462,-400.0,0.00036712,14]
[377563572,1754442702472,-400.0,0.00036712,14]
[377563573,1754442702482,-895.4,0.00036712,14]
[377563574,1754442702491,-400.0,0.00036712,14]
[377563575,1754442702500,-400.0,0.00036712,14]
[377563576,1754442702510,-400.0,0.00036712,14]
[377563577,1754442702519,-702.19,0.00036712,14]
[377563578,1754442702528,-556.09,0.00036712,14]
[377563579,1754442702537,-479.05262192,0.00036712,14]
[377563580,1754442702547,-400.0,0.00036712,14]
[377563581,1754442702556,-945.13,0.00036712,14]
[377563582,1754442702566,-814.37,0.00036712,14]
[377563583,1754442702575,-690.4,0.00036712,14]
[377563584,1754442702585,-400.0,0.00036712,14]
[377563585,1754442702594,-888.16,0.00036712,14]
[377563586,1754442702603,-790.45,0.00036712,14]
[377563587,1754442702612,-1548.89,0.00036712,14]
[377563588,1754442702621,-400.0,0.00036712,14]
[377563589,1754442702630,-1700.4,0.00036712,14]
[377563590,1754442702639,-400.0,0.00036712,14]
[377563591,1754442702649,-1335.25,0.00036712,14]
[377563592,1754442702662,-1795.56,0.00036712,14]
[377563593,1754442702677,-400.0,0.00036712,14]
[377563594,1754442702686,-447.44,0.00036712,14]
[377563595,1754442702695,-565.7,0.00036712,14]
[377563596,1754442702705,-400.0,0.00036712,14]
[377563597,1754442702713,-1441.51,0.00036712,14]
[377563598,1754442702722,-746.64,0.00036712,14]
[377563599,1754442702731,-1198.41,0.00036712,14]
[377563600,1754442702746,-400.0,0.00036712,14]
[377563601,1754442702762,-400.0,0.00036712,14]
[377563602,1754442702772,-400.38,0.00036712,14]
[377563603,1754442702781,-473.95,0.00036712,14]
[377563604,1754442702790,-400.0,0.00036712,14]
[377563605,1754442702799,-705.48,0.00036712,14]
[377563606,1754442702808,-400.0,0.00036712,14]
[377563607,1754442702817,-1109.3,0.00036712,14]
[377563608,1754442702826,-400.0,0.00036712,14]
[377563609,1754442702835,-400.0,0.00036712,14]
[377563610,1754442702845,-400.0,0.00036712,14]
[377563611,1754442702854,-676.32,0.00036712,14]
[377563612,1754442702863,-435.15,0.00036712,14]
[377563613,1754442702872,-1083.01,0.00036712,14]
[377563614,1754442702881,-400.0,0.00036712,14]
[377563615,1754442702890,-400.0,0.00036712,14]
[377563616,1754442702899,-618.68,0.00036712,14]
[377563617,1754442702908,-400.0,0.00036712,14]
[377563618,1754442702918,-2053.3,0.00036712,14]
[377563619,1754442702927,-923.51,0.00036712,14]
[377563620,1754442702937,-556.6,0.00036712,14]
[377563621,1754442702946,-400.0,0.00036712,14]
[377563622,1754442702955,-400.0,0.00036712,14]
[377563623,1754442702965,-1815.69,0.00036712,14]
[377563624,1754442702975,-400.0,0.00036712,14]
[377563625,1754442702985,-400.0,0.00036712,14]
[377563626,1754442702995,-713.06,0.00036712,14]
[377563627,1754442703004,-1040.29,0.00036712,14]
[377563628,1754442703013,-443.51214966,0.00036712,14]
[377563629,1754442703022,-400.0,0.00036712,14]
[377563630,1754442703031,-400.0,0.00036712,14]
[377563631,1754442703040,-400.0,0.00036712,14]
[377563632,1754442703049,-516.14,0.00036712,14]
[377563633,1754442703058,-400.0,0.00036712,14]
[377563634,1754442703067,-400.0,0.00036712,14]
[377563635,1754442703076,-400.0,0.00036712,14]
[377563636,1754442703085,-400.0,0.00036712,14]
[377563637,1754442703094,-400.0,0.00036712,14]
[377563638,1754442703103,-400.0,0.00036712,14]
[377563639,1754442703112,-1588.96,0.00036712,14]
[377563640,1754442703121,-400.0,0.00036712,14]
[377563641,1754442703131,-400.0,0.00036712,14]
[377563642,1754442703140,-501.29,0.00036712,14]
[377563643,1754442703148,-400.0,0.00036712,14]
[377563644,1754442703158,-400.0,0.00036712,14]
[377563645,1754442703167,-400.0,0.00036712,14]
[377563646,1754442703175,-400.0,0.00036712,14]
[377563647,1754442703184,-1728.93,0.00036712,14]
[377563648,1754442703194,-721.83,0.00036712,14]
[377563649,1754442703203,-842.87,0.00036712,14]
[377563650,1754442703212,-400.0,0.00036712,14]
[377563651,1754442703222,-1400.15,0.00036712,14]
[377563652,1754442703234,-2022.66,0.00036712,14]
[377563653,1754442703242,-400.0,0.00036712,14]
[377563654,1754442703251,-400.0,0.00036712,14]
[377563655,1754442703260,-400.0,0.00036712,14]
[377563656,1754442703271,-500.0,0.00036712,30]
[377563657,1754442703279,-1814.02,0.00036712,14]
[377563658,1754442703288,-400.0,0.00036712,14]
[377563659,1754442703299,-400.0,0.00036712,14]
[377563660,1754442703308,-1569.39,0.00036712,14]
[377563661,1754442703317,-699.33,0.00036712,14]
[377563662,1754442703326,-400.0,0.00036712,14]
[377563663,1754442703335,-1178.29,0.00036712,14]
[377563664,1754442703345,-1387.5,0.00036712,14]
[377563665,1754442703354,-492.33,0.00036712,14]
[377563666,1754442703363,-400.0,0.00036712,14]
[377563667,1754442703373,-1463.21,0.00036712,14]
[377563668,1754442703383,-400.0,0.00036712,14]
[377563669,1754442703392,-544.52,0.00036712,14]
[377563670,1754442703402,-400.0,0.00036712,14]
[377563671,1754442703411,-503.4,0.00036712,14]
[377563672,1754442703420,-400.1,0.00036712,14]
[377563673,1754442703429,-400.0,0.00036712,14]
[377563674,1754442703440,-1833.83,0.00036712,14]
[377563675,1754442703451,-1643.62,0.00036712,14]
[377563676,1754442703460,-1450.05,0.00036712,14]
[377563677,1754442703470,-847.42,0.00036712,14]
[377563678,1754442703479,-400.0,0.00036712,14]
[377563679,1754442703489,-483.54,0.00036712,14]
[377563680,1754442703498,-400.0,0.00036712,14]
[377563681,1754442703508,-1132.33,0.00036712,14]
[377563682,1754442703517,-400.0,0.00036712,14]
[377563683,1754442703527,-1000.0,0.00036712,30]
[377563684,1754442703536,-400.0,0.00036712,14]
[377563685,1754442703546,-404.42,0.00036712,14]
[377563686,1754442703555,-400.0,0.00036712,14]
[377563687,1754442703565,-400.0,0.00036712,14]
[377563688,1754442703574,-400.0,0.00036712,14]
[377563689,1754442703593,-1097.1,0.00036712,14]
[377563690,1754442703603,-400.0,0.00036712,14]
[377563691,1754442703612,-400.0,0.00036712,14]
[377563692,1754442703622,-2325.25,0.00036712,14]
[377563693,1754442703633,-1903.94,0.00036712,14]
[377563694,1754442703642,-1533.11,0.00036712,14]
[377563695,1754442703651,-660.51,0.00036712,14]
[377563696,1754442703661,-450.03,0.00036712,14]
[377563697,1754442703670,-460.28,0.00036712,14]
[377563698,1754442703680,-400.0,0.00036712,14]
[377563699,1754442703693,-400.0,0.00036712,14]
[377563700,1754442703703,-400.0,0.00036712,14]
[377563701,1754442703714,-1254.32,0.00036712,14]
[377563702,1754442703724,-1717.8,0.00036712,14]
[377563703,1754442703733,-400.0,0.00036712,14]
[377563704,1754442703743,-400.0,0.00036712,14]
[377563705,1754442703753,-400.0,0.00036712,14]
[377563706,1754442703763,-1428.48,0.00036712,14]
[377563707,1754442703773,-733.28,0.00036712,14]
[377563708,1754442703782,-400.0,0.00036712,14]
[377563709,1754442703791,-400.0,0.00036712,14]
[377563710,1754442703801,-400.0,0.00036712,14]
[377563711,1754442703810,-827.0,0.00036712,14]
[377563712,1754442703820,-400.0,0.00036712,14]
[377563713,1754442703833,-470.72,0.00036712,14]
[377563714,1754442703843,-400.0,0.00036712,14]
[377563715,1754442703852,-400.0,0.00036712,14]
[377563716,1754442703861,-424.41,0.00036712,14]
[377563717,1754442703870,-1695.19,0.00036712,14]
[377563718,1754442703879,-1633.57,0.00036712,14]
[377563719,1754442703888,-1386.71,0.00036712,14]
[377563720,1754442703897,-526.05,0.00036712,14]
[377563721,1754442703906,-400.0,0.00036712,14]
[377563722,1754442703916,-1774.92,0.00036712,14]
[377563723,1754442703925,-400.0,0.00036712,14]
[377563724,1754442703935,-523.37,0.00036712,14]
[377563725,1754442703951,-1821.42,0.00036712,14]
[377563726,1754442703963,-400.0,0.00036712,14]
[377563727,1754442703974,-400.0,0.00036712,14]
[377563728,1754442703984,-537.16,0.00036712,14]
[377563729,1754442703994,-1326.6,0.00036712,14]
[377563730,1754442704003,-403.11,0.00036712,14]
[377563731,1754442704012,-1845.51,0.00036712,14]
[377563732,1754442704022,-406.36,0.00036712,14]
[377563733,1754442704031,-400.0,0.00036712,14]
[377563734,1754442704042,-547.22,0.00036712,14]
[377563735,1754442704051,-902.18,0.00036712,14]
[377563736,1754442704060,-400.0,0.00036712,14]
[377563737,1754442704069,-400.0,0.00036712,14]
[377563738,1754442704078,-400.0,0.00036712,14]
[377563739,1754442704087,-1145.28,0.00036712,14]
[377563740,1754442704097,-553.06,0.00036712,14]
[377563741,1754442704106,-400.0,0.00036712,14]
[377563742,1754442704115,-400.0,0.00036712,14]
[377563743,1754442704125,-2832.17,0.00036712,14]
[377563744,1754442704134,-2180.85,0.00036712,14]
[377563745,1754442704143,-2243.29,0.00036712,14]
[377563746,1754442704152,-1098.87,0.00036712,14]
[377563747,1754442704161,-400.0,0.00036712,14]
[377563748,1754442704170,-400.0,0.00036712,14]
[377563749,1754442704179,-1583.64,0.00036712,14]
[377563750,1754442704190,-1529.8,0.00036712,14]
[377563751,1754442704199,-400.0,0.00036712,14]
[377563752,1754442704208,-400.0,0.00036712,14]
[377563753,1754442704217,-400.0,0.00036712,14]
[377563754,1754442704228,-1102.58,0.00036712,14]
[377563755,1754442704241,-400.0,0.00036712,14]
[377563756,1754442704251,-1658.45,0.00036712,14]
[377563757,1754442704260,-977.09,0.00036712,14]
[377563758,1754442704271,-400.0,0.00036712,14]
[377563759,1754442704280,-473.22,0.00036712,14]
[377563760,1754442704291,-1718.03,0.00036712,14]
[377563761,1754442704299,-400.0,0.00036712,14]
[377563762,1754442704310,-400.0,0.00036712,14]
[377563763,1754442704319,-400.0,0.00036712,14]
[377563764,1754442704329,-1030.9,0.00036712,14]
[377563765,1754442704339,-400.0,0.00036712,14]
[377563766,1754442704349,-799.93,0.00036712,14]
[377563767,1754442704360,-400.0,0.00036712,14]
[377563768,1754442704371,-1782.82,0.00036712,14]